bitfinex/quotes_BTCUSD_20220211
["timestamp","ask_amount","ask_price","bid_price","bid_amount"]
[1644542985605,0.05372035,43471.0,43469.0,0.05754068]
[1644542985808,0.05372035,43471.0,43469.0,0.11508268]
[1644542986007,0.05372035,43471.0,43469.0,0.17262568]
[1644542986406,0.03351154,43471.0,43469.0,0.17262568]
[1644542988765,0.38304794,43471.0,43469.0,0.17262568]
[1644542988964,0.38304794,43471.0,43469.0,0.115085]
[1644542989362,0.03351154,43471.0,43469.0,0.115085]
[1644542989566,0.38304794,43471.0,43469.0,0.115085]
[1644542992411,0.37804794,43471.0,43469.0,0.115085]
[1644542992622,0.323359,43470.0,43469.0,0.115085]
[1644542992807,0.6306442,43470.0,43469.0,0.0393627]
[1644542994007,0.323359,43470.0,43469.0,0.0393627]
[1644542998263,0.4445364,43471.0,43469.0,0.0393627]
[1644542998460,0.25,43471.0,43469.0,0.0393627]
[1644542998659,0.25,43471.0,43469.0,0.0969057]
[1644542999058,0.25,43471.0,43469.0,0.17845184]
[1644542999460,0.25,43471.0,43469.0,0.29353546]
[1644542999660,0.25,43471.0,43469.0,0.21198932]
[1644543000508,0.323359,43470.0,43469.0,0.21198932]
[1644543001305,0.25,43471.0,43469.0,0.21198932]
[1644543002510,0.323359,43470.0,43469.0,0.0393627]
[1644543002909,0.323359,43470.0,43469.0,0.03159591]
[1644543003109,0.65120809,43470.0,43467.0,0.03159591]
[1644543003313,0.65120809,43470.0,43465.0,0.00048992]
[1644543003314,0.15,43466.0,43465.0,0.00048992]
[1644543003512,0.519459,43466.0,43465.0,0.00048992]
[1644543003758,0.79829737,43466.0,43465.0,0.00048992]
[1644543003959,1.19112914,43466.0,43465.0,0.00048992]
[1644543004159,0.89646201,43466.0,43463.0,0.11562793]
[1644543004359,0.66717967,43465.0,43463.0,0.11562793]
[1644543004562,0.0461,43464.0,43463.0,0.11562793]
[1644543004959,0.1961,43464.0,43463.0,0.11562793]
[1644543005159,0.1961,43464.0,43463.0,0.115138]
[1644543005363,0.53992067,43464.0,43461.0,0.01048996]
[1644543005562,0.207574,43462.0,43461.0,9.96e-06]
[1644543005765,0.577033,43462.0,43461.0,9.96e-06]
[1644543005962,0.62521156,43462.0,43461.0,9.96e-06]
[1644543006164,0.4003621,43461.0,43453.0,0.0030602]
[1644543006365,0.4003621,43461.0,43455.0,0.0001]
[1644543006366,0.05,43456.0,43455.0,0.0001]
[1644543006563,0.14427856,43456.0,43455.0,0.0001]
[1644543006967,0.14427856,43456.0,43443.0,0.43891204]
[1644543006968,1.323359,43455.0,43443.0,0.11609399]
[1644543007163,0.09427856,43454.0,43453.0,0.00022825]
[1644543007435,0.323359,43452.0,43443.0,0.11632224]
[1644543007625,0.323359,43448.0,43447.0,0.115172]
[1644543009127,0.323359,43448.0,43446.0,0.05781525]
[1644543009328,0.323359,43448.0,43445.0,0.05781325]
[1644543009529,0.473359,43447.0,43444.0,0.34880243]
[1644543009727,0.473359,43447.0,43444.0,0.34857418]
[1644543009728,0.323359,43446.0,43444.0,0.34857418]
[1644543009927,0.15,43445.0,43444.0,0.33958543]
[1644543010129,0.473359,43445.0,43444.0,0.33935718]
[1644543010630,0.323359,43444.0,43443.0,0.00163319]
[1644543010927,0.323359,43444.0,43443.0,0.00140494]
[1644543011357,0.323359,43444.0,43443.0,0.00092199]
[1644543011961,0.323359,43444.0,43439.0,0.0011]
[1644543012162,0.323359,43444.0,43436.0,0.0022]
[1644543012163,0.15,43438.0,43436.0,0.0022]
[1644543012361,0.0961,43437.0,43436.0,0.0022]
[1644543012957,0.419459,43437.0,43436.0,0.0001]
[1644543013162,0.419459,43437.0,43435.0,0.00100942]
[1644543013358,0.323359,43436.0,43435.0,0.00100942]
[1644543013562,0.057621,43434.0,43428.0,0.01971066]
[1644543013858,0.50359401,43429.0,43428.0,0.01971066]
[1644543014059,0.519459,43429.0,43428.0,0.01971066]
[1644543014458,0.87844388,43429.0,43428.0,0.01971066]
[1644543014658,0.577078,43429.0,43428.0,0.01971066]
[1644543014918,0.557078,43429.0,43428.0,0.01971066]
[1644543015110,0.557078,43429.0,43427.0,0.00922]
[1644543015310,0.323359,43428.0,43427.0,0.00922]
[1644543015509,0.369459,43428.0,43427.0,0.00922]
[1644543016115,0.66473755,43428.0,43427.0,0.00922]
[1644543016315,0.7002708,43428.0,43427.0,0.00922]
[1644543016917,0.7002708,43428.0,43427.0,2e-05]
[1644543017316,0.7002708,43428.0,43423.0,0.0011]
[1644543017317,0.115267,43427.0,43423.0,0.0011]
[1644543017618,0.369459,43426.0,43425.0,0.00047596]
[1644543018416,0.484713,43426.0,43425.0,0.00047596]
[1644543018655,0.85437431,43426.0,43423.0,0.00157598]
[1644543019256,0.85437431,43426.0,43423.0,0.00047598]
[1644543019460,0.85437431,43426.0,43421.0,0.0122]
[1644543019461,0.453359,43423.0,43421.0,0.0122]
[1644543019658,0.13,43421.0,43418.0,0.01217876]
[1644543019859,0.13,43421.0,43417.0,0.0011]
[1644543019860,1.0461,43420.0,43417.0,0.0011]
[1644543020058,0.93947233,43419.0,43417.0,0.0011]
[1644543020258,0.36149341,43418.0,43411.0,0.0011]
[1644543020458,0.323359,43417.0,43411.0,0.0011]
[1644543020657,0.35529471,43416.0,43411.0,0.0011]
[1644543021657,0.67865371,43416.0,43411.0,0.0011]
[1644543022510,0.35529471,43416.0,43411.0,0.0011]
[1644543023112,0.0461,43416.0,43411.0,0.0011]
[1644543023312,0.35441854,43416.0,43411.0,0.0011]
[1644543023517,0.35441854,43416.0,43413.0,0.0004749]
[1644543023518,0.115288,43414.0,43413.0,0.0004749]
[1644543023712,0.484747,43414.0,43413.0,0.0004749]
[1644543023912,0.614747,43414.0,43413.0,0.0004749]
[1644543024417,0.664747,43414.0,43413.0,0.0004749]
[1644543024617,0.30099199,43408.0,43406.0,0.00095984]
[1644543024815,0.323359,43407.0,43406.0,0.00095984]
[1644543025414,0.40099199,43408.0,43406.0,0.00095984]
[1644543025816,0.323383,43407.0,43406.0,0.00095984]
[1644543026559,0.453383,43407.0,43406.0,0.00095984]
[1644543027361,0.323383,43407.0,43406.0,0.00095984]
[1644543027560,0.323383,43407.0,43406.0,0.07612288]
[1644543027561,0.223183,43407.0,43406.0,0.07612288]
[1644543027764,0.1,43408.0,43406.0,0.07612288]
[1644543027962,0.1,43408.0,43406.0,0.00095984]
[1644543028364,0.323383,43407.0,43406.0,0.00095984]
[1644543028567,0.39989571,43408.0,43406.0,0.00095984]
[1644543028766,0.1,43408.0,43406.0,0.00095984]
[1644543028970,0.1,43408.0,43406.0,0.32434284]
[1644543029167,0.13,43419.0,43417.0,0.07675906]
[1644543029369,0.323383,43418.0,43407.0,0.28751406]
[1644543029571,0.1,43421.0,43413.0,0.115245]
[1644543029920,0.30571601,43417.0,43414.0,0.057625]
[1644543030113,0.30571601,43417.0,43414.0,0.05785326]
[1644543030312,0.30571601,43417.0,43415.0,0.323383]
[1644543030512,0.30571601,43417.0,43414.0,0.00022826]
[1644543030713,0.30571601,43417.0,43415.0,0.323383]
[1644543031811,0.13,43420.0,43415.0,0.323383]
[1644543032013,0.1,43421.0,43416.0,0.323383]
[1644543032217,0.057628,43419.0,43416.0,0.00022826]
[1644543032512,0.057628,43419.0,43415.0,0.05785526]
[1644543032713,0.057628,43419.0,43416.0,0.07406617]
[1644543033014,0.057628,43419.0,43415.0,0.323383]
[1644543033015,0.33842078,43418.0,43415.0,0.323383]
[1644543033214,0.33842078,43418.0,43415.0,0.32385788]
[1644543033412,0.33842078,43418.0,43415.0,0.00047488]
[1644543033413,0.13,43416.0,43415.0,0.00047488]
[1644543033661,0.511018,43416.0,43415.0,0.00047488]
[1644543034258,0.511018,43416.0,43409.0,0.323383]
[1644543034458,0.187635,43416.0,43413.0,0.0004749]
[1644543034658,0.323383,43415.0,43413.0,0.0004749]
[1644543034858,0.187635,43416.0,43413.0,0.26901107]
[1644543035059,0.057635,43416.0,43413.0,0.26901107]
[1644543035258,0.323383,43415.0,43413.0,0.26901107]
[1644543035458,0.057635,43416.0,43413.0,0.26853617]
[1644543035659,0.13,43415.0,43413.0,0.26853617]
[1644543035861,0.13,43413.0,43412.0,0.00047491]
[1644543036062,0.511027,43413.0,43412.0,0.00047491]
[1644543036660,0.453383,43413.0,43406.0,0.00095984]
[1644543036859,0.72628483,43412.0,43410.0,0.00047493]
[1644543037261,0.13,43411.0,43410.0,0.00047493]
[1644543037507,0.453383,43411.0,43410.0,0.00047493]
[1644543037908,0.40290183,43412.0,43408.0,0.00047495]
[1644543038109,0.057645,43411.0,43408.0,0.00047495]
[1644543038308,0.13,43409.0,43408.0,0.00047495]
[1644543038510,0.453383,43409.0,43408.0,0.00047495]
[1644543038909,0.453383,43409.0,43406.0,0.00095984]
[1644543039113,0.323383,43408.0,43406.0,0.00095984]
[1644543039310,0.13,43407.0,43406.0,0.00143482]
[1644543039512,0.05765,43405.0,43401.0,0.00863762]
[1644543039908,0.323383,43404.0,43401.0,0.0088659]
[1644543040110,0.323383,43403.0,43402.0,0.05765]
[1644543040308,0.05765,43405.0,43402.0,0.05787828]
[1644543040509,0.61382938,43404.0,43402.0,0.05787828]
[1644543040709,0.29044638,43404.0,43402.0,0.05765]
[1644543040910,0.05765,43405.0,43402.0,0.05765]
[1644543040911,0.05765,43405.0,43403.0,0.60809649]
[1644543041161,0.157642,43407.0,43403.0,0.39999749]
[1644543041461,0.157642,43407.0,43403.0,0.40022577]
[1644543041763,0.1,43407.0,43403.0,0.40022577]
[1644543041959,0.1,43407.0,43403.0,0.45763949]
[1644543042160,0.1,43407.0,43404.0,0.323383]
[1644543042360,0.1,43407.0,43403.0,0.45763949]
[1644543042563,0.1,43407.0,43404.0,0.323383]
[1644543042761,0.13,43406.0,43405.0,0.323383]
[1644543042959,0.13,43406.0,43403.0,0.1730685]
[1644543043560,0.13,43406.0,43404.0,0.05764]
[1644543043761,0.323383,43405.0,43404.0,0.05764]
[1644543043963,0.13,43406.0,43404.0,0.05764]
[1644543044762,0.453383,43406.0,43404.0,0.05764]
[1644543045013,0.13,43406.0,43404.0,0.05764]
[1644543045211,0.323383,43405.0,43404.0,0.05764]
[1644543045417,0.1299,43406.0,43404.0,0.05764]
[1644543045613,0.323383,43405.0,43404.0,0.05764]
[1644543045812,0.1299,43406.0,43404.0,0.05764]
[1644543046013,0.323383,43405.0,43404.0,0.05764]
[1644543046514,0.323383,43406.0,43404.0,0.05764]
[1644543047715,0.438687,43406.0,43404.0,0.05764]
[1644543049378,0.438687,43406.0,43403.0,0.0007017]
[1644543049580,0.1299,43404.0,43403.0,0.00047383]
[1644543049775,0.1299,43404.0,43402.0,0.00022787]
[1644543049776,0.453283,43404.0,43402.0,0.00022787]
[1644543049978,0.057656,43402.0,43401.0,0.00886549]
[1644543050178,0.70491389,43402.0,43401.0,0.00886549]
[1644543050379,1.05453119,43402.0,43401.0,0.00886549]
[1644543052913,0.381039,43402.0,43401.0,0.00886549]
[1644543053111,0.323383,43402.0,43401.0,0.00886549]
[1644543053513,0.1299,43404.0,43401.0,0.06651049]
[1644543053712,0.323383,43403.0,43402.0,0.057644]
[1644543054016,0.1461,43407.0,43404.0,0.57238206]
[1644543054017,0.323383,43406.0,43404.0,0.57238206]
[1644543054213,0.323383,43406.0,43403.0,0.00022787]
[1644543054413,0.323383,43406.0,43402.0,0.00022787]
[1644543054617,0.323383,43406.0,43403.0,0.057641]
[1644543054812,0.323383,43406.0,43403.0,0.047641]
[1644543055011,0.323383,43406.0,43403.0,0.04786887]
[1644543055412,0.67088401,43406.0,43403.0,0.04786887]
[1644543055613,0.323383,43406.0,43403.0,0.04786887]
[1644543055814,0.323383,43406.0,43404.0,0.12595612]
[1644543056015,0.453283,43406.0,43404.0,0.12618399]
[1644543056261,0.1299,43406.0,43404.0,0.17618399]
[1644543056762,0.323383,43405.0,43404.0,0.12618399]
[1644543057167,0.1299,43406.0,43405.0,0.52539208]
[1644543057363,0.157642,43407.0,43405.0,0.52561995]
[1644543057562,0.1299,43406.0,43405.0,0.52561995]
[1644543057962,0.453283,43406.0,43405.0,0.52561995]
[1644543058164,0.157642,43407.0,43405.0,0.52561995]
[1644543058964,0.1299,43406.0,43405.0,0.52561995]
[1644543059163,0.453283,43406.0,43405.0,0.52561995]
[1644543060421,0.91124804,43406.0,43405.0,0.52561995]
[1644543060820,1.20127888,43406.0,43405.0,0.52561995]
[1644543061121,1.24737888,43406.0,43405.0,0.52561995]
[1644543061318,1.24737888,43406.0,43405.0,0.52539208]
[1644543063021,0.614686,43406.0,43405.0,0.52539208]
[1644543063223,0.453283,43406.0,43405.0,0.52561995]
[1644543063859,0.1299,43406.0,43405.0,0.52561995]
[1644543064063,0.76731069,43406.0,43405.0,0.52561995]
[1644543064263,1.22395136,43406.0,43405.0,0.52561995]
[1644543065067,1.54225781,43406.0,43405.0,0.52561995]
[1644543065663,1.24701114,43406.0,43405.0,0.52561995]
[1644543065862,1.59093849,43406.0,43405.0,0.52561995]
[1644543066062,1.59149081,43406.0,43405.0,0.52561995]
[1644543066262,1.59149081,43406.0,43405.0,0.52539208]
[1644543066463,1.27318436,43406.0,43405.0,0.52539208]
[1644543066763,0.92870469,43406.0,43405.0,0.52539208]
[1644543066965,1.29469871,43406.0,43405.0,0.52539208]
[1644543067162,0.95021904,43406.0,43405.0,0.52539208]
[1644543067611,1.23513493,43406.0,43405.0,0.52539208]
[1644543068809,1.21362058,43406.0,43405.0,0.52539208]
[1644543069609,1.55806438,43406.0,43405.0,0.52539208]
[1644543069810,1.26708303,43406.0,43405.0,0.52539208]
[1644543070316,0.98216714,43406.0,43405.0,0.52539208]
[1644543070514,1.27314035,43406.0,43405.0,0.52539208]
[1644543070710,0.92870469,43406.0,43405.0,0.52539208]
[1644543070912,1.22392325,43406.0,43405.0,0.52539208]
[1644543071164,1.17782325,43406.0,43405.0,0.52539208]
[1644543071362,1.49102155,43406.0,43405.0,0.52539208]
[1644543072163,1.19580299,43406.0,43405.0,0.52539208]
[1644543073365,1.52516645,43406.0,43405.0,0.52539208]
[1644543073665,1.5402065,43406.0,43405.0,0.52539208]
[1644543073865,1.5252065,43406.0,43405.0,0.52539208]
[1644543075015,1.54344959,43406.0,43405.0,0.52539208]
[1644543075215,1.23025129,43406.0,43405.0,0.52539208]
[1644543075418,0.9162236,43406.0,43405.0,0.52539208]
[1644543075617,0.91625085,43406.0,43405.0,0.52539208]
[1644543075817,0.57182009,43406.0,43405.0,0.52539208]
[1644543076916,0.553577,43406.0,43405.0,0.52539208]
[1644543079960,0.438677,43406.0,43405.0,0.52539208]
[1644543080365,0.438677,43406.0,43405.0,0.52561995]
[1644543080366,0.89800776,43406.0,43405.0,0.52561995]
[1644543080563,0.5928311,43406.0,43405.0,0.52561995]
[1644543081160,0.5928311,43406.0,43405.0,0.52061995]
[1644543081361,0.4779311,43406.0,43405.0,0.52061995]
[1644543081560,0.5928311,43406.0,43405.0,0.52061995]
[1644543083920,0.89547615,43406.0,43405.0,0.52061995]
[1644543084521,0.89547615,43406.0,43405.0,0.51561995]
[1644543084727,0.89547615,43406.0,43400.0,0.00016]
[1644543084728,0.1149,43401.0,43400.0,0.00016]
[1644543084925,0.1149,43401.0,43381.0,0.01]
[1644543084926,0.22930273,43386.0,43381.0,0.01]
[1644543085126,1.273383,43385.0,43381.0,0.01]
[1644543085324,0.161,43384.0,43382.0,0.0024281]
[1644543085522,1.0,43383.0,43371.0,0.05824715]
[1644543085724,1.0,43383.0,43371.0,0.06174511]
[1644543085725,0.3447153,43372.0,43371.0,0.06174511]
[1644543085928,0.6680983,43372.0,43371.0,0.06174511]
[1644543086162,0.323383,43372.0,43371.0,0.06174511]
[1644543086562,0.323383,43372.0,43371.0,0.00559796]
[1644543087162,0.323383,43372.0,43360.0,0.25024297]
[1644543087163,1.323383,43371.0,43360.0,0.25024297]
[1644543087362,0.49955008,43368.0,43360.0,0.25046785]
[1644543087561,0.323383,43367.0,43360.0,0.25046785]
[1644543087760,0.1461,43373.0,43364.0,0.34263138]
[1644543087761,0.1149,43372.0,43364.0,0.34263138]
[1644543088164,0.1461,43373.0,43364.0,0.34263138]
[1644543088165,0.115383,43371.0,43364.0,0.34263138]
[1644543088363,0.1461,43373.0,43366.0,0.05]
[1644543088567,0.1461,43373.0,43367.0,0.100754]
[1644543088762,0.1461,43373.0,43366.0,0.40468321]
[1644543089361,0.323383,43372.0,43366.0,0.10836919]
[1644543089560,0.323383,43372.0,43366.0,0.10790588]
[1644543089760,0.323383,43372.0,43367.0,0.00013957]
[1644543090018,0.1,43373.0,43367.0,0.00013957]
[1644543090216,0.1,43373.0,43367.0,0.00036445]
[1644543090419,0.057686,43371.0,43367.0,0.00036445]
[1644543090615,0.323383,43370.0,43367.0,0.00022488]
[1644543090818,0.438769,43370.0,43368.0,0.00013957]
[1644543091222,0.323383,43370.0,43368.0,0.00013957]
[1644543091419,0.381074,43370.0,43368.0,0.00036445]
[1644543091623,0.369483,43369.0,43368.0,0.00036445]
[1644543091820,0.469483,43369.0,43368.0,0.00022488]
[1644543092523,0.469483,43369.0,43367.0,1.794e-05]
[1644543092524,0.82461408,43369.0,43367.0,1.794e-05]
[1644543092720,0.82461408,43369.0,43360.0,6.43e-06]
[1644543092721,0.1149,43362.0,43360.0,6.43e-06]
[1644543092922,0.323383,43359.0,43350.0,4e-06]
[1644543093128,0.1149,43351.0,43350.0,4e-06]
[1644543093322,0.484383,43351.0,43350.0,4e-06]
[1644543093778,0.59006834,43351.0,43350.0,4e-06]
[1644543093972,0.64779734,43351.0,43350.0,4e-06]
[1644543094172,0.64779734,43351.0,43342.0,0.0011]
[1644543094173,5.6e-05,43348.0,43342.0,0.0011]
[1644543094374,0.323383,43347.0,43342.0,0.0011]
[1644543094572,0.0461,43348.0,43342.0,0.0011]
[1644543094573,0.1149,43343.0,43342.0,0.0011]
[1644543095175,0.423383,43344.0,43342.0,0.0011]
[1644543095376,0.323383,43342.0,43339.0,0.00145886]
[1644543095575,0.0461,43343.0,43340.0,0.323383]
[1644543095774,0.0461,43343.0,43342.0,0.101036]
[1644543095977,0.0461,43343.0,43341.0,0.35689435]
[1644543096174,0.0461,43343.0,43342.0,0.689411]
[1644543096775,0.03858098,43344.0,43343.0,0.651016]
[1644543096979,0.0461,43345.0,43344.0,0.323366]
[1644543097177,0.0335468,43351.0,43350.0,0.335002]
[1644543097420,0.3569298,43351.0,43349.0,0.057711]
[1644543098215,0.3569298,43351.0,43348.0,0.00045307]
[1644543098416,0.1149,43349.0,43348.0,0.00045307]
[1644543098634,0.438283,43349.0,43348.0,0.00045307]
[1644543099217,0.1149,43347.0,43346.0,0.00045309]
[1644543099416,0.438283,43347.0,43346.0,0.00045309]
[1644543099615,0.323383,43347.0,43346.0,0.00045309]
[1644543100418,0.323383,43346.0,43341.0,0.11544]
[1644543100617,0.057722,43348.0,43344.0,0.00045311]
[1644543100618,0.3708037,43348.0,43344.0,0.00045311]
[1644543100816,0.438283,43347.0,43344.0,0.00045311]
[1644543101263,0.323383,43346.0,43344.0,0.00045311]
[1644543101461,0.323383,43346.0,43342.0,0.00022695]
[1644543101664,0.323383,43346.0,43343.0,0.00045312]
[1644543102262,0.438283,43344.0,43343.0,0.00068007]
[1644543102466,0.323383,43344.0,43343.0,0.00068007]
[1644543102664,0.0796468,43351.0,43343.0,0.00022695]
[1644543102864,0.323383,43350.0,43345.0,0.115429]
[1644543103066,0.25353228,43348.0,43345.0,0.115429]
[1644543103265,0.057722,43348.0,43342.0,0.00022695]
[1644543103464,0.057722,43348.0,43341.0,0.00045314]
[1644543103664,0.1149,43347.0,43341.0,0.00045314]
[1644543103966,0.1149,43346.0,43340.0,0.00022695]
[1644543104169,0.1149,43346.0,43342.0,0.05817813]
[1644543104365,0.26071049,43344.0,43342.0,0.05817813]
[1644543105025,0.438283,43343.0,43339.0,0.11690486]
[1644543105226,1.323383,43342.0,43340.0,0.00022696]
[1644543105423,1.323383,43342.0,43341.0,0.0004033]
[1644543105424,1.438283,43342.0,43341.0,0.0004033]
[1644543105621,0.438283,43342.0,43341.0,0.0004033]
[1644543105823,0.59611941,43342.0,43341.0,0.0004033]
[1644543106025,0.496014,43342.0,43341.0,0.0004033]
[1644543106426,0.496014,43342.0,43339.0,0.00070618]
[1644543106427,0.323383,43341.0,43339.0,0.00070618]
[1644543106624,0.438283,43340.0,43339.0,0.00070618]
[1644543107424,0.538283,43340.0,43339.0,0.00070618]
[1644543108222,0.538283,43340.0,43339.0,6.18e-06]
[1644543108429,0.884383,43340.0,43339.0,6.18e-06]
[1644543108671,0.323383,43339.0,43338.0,0.00104]
[1644543108870,0.469483,43339.0,43338.0,0.00104]
[1644543109272,0.469483,43339.0,43337.0,0.00045205]
[1644543109273,0.62731941,43339.0,43337.0,0.00014205]
[1644543109578,0.62731941,43339.0,43329.0,0.00180851]
[1644543109579,0.115518,43335.0,43329.0,0.00180851]
[1644543109771,0.369483,43334.0,43329.0,0.00180851]
[1644543109971,0.369483,43334.0,43322.0,0.0011]
[1644543109972,0.496043,43331.0,43322.0,0.0011]
[1644543110174,0.542143,43331.0,43322.0,0.0011]
[1644543110373,0.89285767,43331.0,43323.0,0.34848212]
[1644543110574,0.427243,43331.0,43323.0,0.34848212]
[1644543111574,0.76965023,43331.0,43330.0,0.28874607]
[1644543111775,0.76965023,43331.0,43330.0,0.00072442]
[1644543111975,0.88455023,43331.0,43330.0,0.00072442]
[1644543112422,0.427243,43331.0,43330.0,0.00072442]
[1644543113419,0.7056013,43331.0,43330.0,0.00072442]
[1644543113818,0.8205013,43331.0,43330.0,0.00072442]
[1644543114418,0.7056013,43331.0,43324.0,0.36565373]
[1644543114619,0.323383,43330.0,43324.0,0.36565373]
[1644543115220,0.323383,43330.0,43324.0,0.42339973]
[1644543115420,0.32307679,43330.0,43324.0,0.42339973]
[1644543115621,0.62309419,43330.0,43324.0,0.42339973]
[1644543115826,0.1,43332.0,43329.0,0.05]
[1644543116025,0.15783641,43331.0,43330.0,0.101301]
[1644543116264,0.1,43332.0,43330.0,0.151301]
[1644543116465,0.1,43332.0,43330.0,0.101301]
[1644543116865,0.1,43332.0,43331.0,0.63847129]
[1644543117266,0.057734,43337.0,43333.0,0.057734]
[1644543117470,0.32354,43336.0,43333.0,0.057734]
[1644543118066,0.1,43342.0,43334.0,0.3246239]
[1644543118266,0.32354,43341.0,43334.0,0.3246239]
[1644543118468,0.32354,43341.0,43336.0,0.115458]
[1644543118767,0.00058183,43337.0,43336.0,0.115458]
[1644543118968,0.32412183,43337.0,43336.0,0.057731]
[1644543119566,0.32354,43337.0,43334.0,0.4400859]
[1644543120019,0.58340667,43338.0,43334.0,0.4400859]
[1644543120214,0.32354,43338.0,43334.0,0.4400859]
[1644543120815,0.32354,43338.0,43334.0,0.44031147]
[1644543121016,0.32354,43341.0,43334.0,0.44031147]
[1644543121214,0.00058183,43338.0,43334.0,0.44031147]
[1644543121415,0.32354,43337.0,43334.0,0.44031147]
[1644543121717,0.32354,43337.0,43334.0,0.11568757]
[1644543122117,0.32354,43337.0,43334.0,0.115462]
[1644543122515,0.00293239,43333.0,43329.0,0.29260938]
[1644543122720,0.00293239,43333.0,43331.0,0.43808431]
[1644543122915,0.00293239,43333.0,43332.0,0.213539]
[1644543123315,0.00293239,43333.0,43332.0,0.26376457]
[1644543123971,0.00293239,43333.0,43332.0,0.37923657]
[1644543124472,0.00293239,43333.0,43332.0,0.45617232]
[1644543125071,0.00293239,43333.0,43331.0,0.28138736]
[1644543126273,0.00293239,43333.0,43331.0,0.33138736]
[1644543126476,0.00293239,43333.0,43332.0,0.115472]
[1644543127273,0.00293239,43333.0,43332.0,0.165472]
[1644543130216,0.00293239,43333.0,43332.0,0.160472]
[1644543130621,0.00293239,43333.0,43332.0,0.210472]
[1644543130820,0.00058181,43337.0,43333.0,0.8]
[1644543131024,0.00058181,43337.0,43336.0,0.05]
[1644543131274,0.15783641,43348.0,43337.0,1.02831821]
[1644543131471,0.19672789,43353.0,43340.0,0.05]
[1644543131670,0.057711,43352.0,43340.0,0.04867725]
[1644543131872,0.057711,43352.0,43346.0,0.07022304]
[1644543132070,0.057711,43352.0,43347.0,0.05771]
[1644543132472,0.057711,43352.0,43347.0,0.11542]
[1644543132473,0.11480431,43350.0,43347.0,0.11542]
[1644543132671,0.52027289,43349.0,43347.0,0.11542]
[1644543132869,0.57799189,43349.0,43347.0,0.11542]
[1644543133472,0.19686905,43348.0,43347.0,0.11542]
[1644543133771,0.323545,43348.0,43347.0,0.11542]
[1644543134370,0.52041502,43348.0,43347.0,0.11542]
[1644543135418,0.56945486,43348.0,43347.0,0.11542]
[1644543135819,0.323545,43348.0,43347.0,0.11542]
[1644543136017,0.323545,43347.0,43346.0,0.10598057]
[1644543136215,0.86182822,43347.0,43346.0,0.10598057]
[1644543137019,0.61561835,43347.0,43346.0,0.10598057]
[1644543137418,0.86182822,43347.0,43346.0,0.10598057]
[1644543137617,0.91071018,43347.0,43346.0,0.10598057]
[1644543137818,0.323545,43347.0,43346.0,0.10598057]
[1644543139565,0.56984986,43347.0,43346.0,0.15598057]
[1644543139766,0.323545,43347.0,43346.0,0.5124459]
[1644543139967,0.56985076,43347.0,43346.0,0.5124459]
[1644543140170,0.56985076,43347.0,43346.0,0.15598057]
[1644543140368,0.323545,43347.0,43346.0,0.10598057]
[1644543140766,0.323545,43347.0,43346.0,0.15598057]
[1644543140970,0.56984905,43347.0,43346.0,0.15620598]
[1644543141166,0.56984905,43347.0,43346.0,0.10620598]
[1644543141371,0.56984905,43347.0,43346.0,0.00022541]
[1644543141372,0.78178012,43347.0,43346.0,0.00022541]
[1644543141571,0.78178012,43347.0,43339.0,0.00022541]
[1644543141572,0.73527106,43347.0,43339.0,0.00022541]
[1644543141769,0.73527106,43347.0,43334.0,0.115463]
[1644543141770,0.61916822,43340.0,43334.0,0.115463]
[1644543141968,0.323545,43336.0,43334.0,0.115463]
[1644543142167,0.24636317,43337.0,43334.0,0.115463]
[1644543142419,0.19708984,43335.0,43334.0,0.115463]
[1644543142616,0.19708984,43335.0,43334.0,0.17341932]
[1644543142815,0.19708984,43336.0,43334.0,0.17341932]
[1644543143013,0.19708984,43336.0,43335.0,0.05]
[1644543143213,0.19708984,43336.0,43335.0,0.05022532]
[1644543143414,0.24636317,43338.0,43335.0,0.05022532]
[1644543143617,0.19710006,43336.0,43335.0,0.05022532]
[1644543143814,0.19710006,43336.0,43335.0,0.16566981]
[1644543144818,0.19710006,43337.0,43335.0,0.16566981]
[1644543145016,0.19710006,43337.0,43336.0,0.05]
[1644543145820,0.24690315,43339.0,43336.0,0.05]
[1644543145821,0.24636317,43338.0,43336.0,0.05]
[1644543146018,0.1971092,43337.0,43336.0,0.107727]
[1644543146272,0.24636317,43339.0,43336.0,0.107727]
[1644543146468,0.56990817,43338.0,43336.0,0.165455]
[1644543147068,0.24636317,43338.0,43336.0,0.22318212]
[1644543147268,0.323545,43337.0,43336.0,0.05]
[1644543147469,0.323545,43337.0,43332.0,0.173179]
[1644543147670,0.19713251,43335.0,43333.0,0.05]
[1644543147873,0.19713251,43336.0,43334.0,0.115455]
[1644543148274,0.24690319,43339.0,43334.0,0.115455]
[1644543148275,0.19713251,43337.0,43335.0,0.10772319]
[1644543148473,0.00054002,43339.0,43336.0,0.04867725]
[1644543148474,0.19713251,43338.0,43336.0,0.04867725]
[1644543148675,0.19713251,43339.0,43335.0,0.36275511]
[1644543148876,0.19713251,43339.0,43337.0,0.066627]
[1644543149072,0.19767252,43339.0,43337.0,0.066627]
[1644543149276,0.00054001,43339.0,43337.0,0.116627]
[1644543149474,0.24690318,43339.0,43337.0,0.05]
[1644543149775,0.19713414,43338.0,43337.0,0.10772]
[1644543150215,0.19713414,43339.0,43337.0,0.10772]
[1644543150415,0.19713414,43339.0,43337.0,0.18306315]
[1644543150612,0.29765948,43340.0,43337.0,0.18306315]
[1644543150813,0.29765948,43340.0,43338.0,0.33842546]
[1644543151014,0.29713414,43340.0,43338.0,0.39614015]
[1644543151214,0.29765947,43340.0,43339.0,0.05]
[1644543151713,0.29765947,43340.0,43338.0,0.44614015]
[1644543151915,0.19713414,43339.0,43338.0,0.44614015]
[1644543152316,0.29713414,43340.0,43338.0,0.44614015]
[1644543152517,0.1,43340.0,43338.0,0.44614015]
[1644543152718,0.1,43340.0,43339.0,0.04867725]
[1644543153118,0.1,43340.0,43339.0,0.3457736]
[1644543153421,0.29712213,43340.0,43339.0,0.4957736]
[1644543154170,0.1,43340.0,43339.0,0.4957736]
[1644543154366,0.06145618,43340.0,43339.0,0.4957736]
[1644543154867,0.05645618,43340.0,43339.0,0.4957736]
[1644543155967,0.24932926,43341.0,43340.0,0.057706]
[1644543156166,0.05220713,43341.0,43340.0,0.057706]
[1644543156366,0.19764906,43342.0,43340.0,0.107706]
[1644543156567,0.19764906,43342.0,43341.0,0.11541259]